fUSD/lending_fUSD_20260529
["ID","MTS","AMOUNT","RATE_DAILY","PERIOD"]
[423383162,1780069854000,-250.0,0.00035476,7]
[423383160,1780069854000,-250.0,0.00035476,7]
[423383169,1780069854000,-775.62999999,0.00035616,30]
[423383165,1780069854000,-1000.0,0.00035499,27]
[423383167,1780069854000,-25000.0,0.00035607,10]
[423383163,1780069854000,-250.0,0.00035476,7]
[423383168,1780069854000,-1000.0,0.00035615,10]
[423383164,1780069854000,-250.0,0.00035476,7]
[423383159,1780069854000,-200.0,0.00035458,2]
[423383170,1780069854000,-517.09,0.00035616,60]
[423383177,1780069854000,-500.0,0.00035616,7]
[423383245,1780069855000,-259.733333,0.000362,31]
[423383252,1780069855000,-1000.0,0.00036321,18]
[423383237,1780069855000,-400.0,0.00036048,2]
[423383243,1780069855000,-150.0,0.00036153,2]
[423383242,1780069855000,-2704.2,0.00036153,30]
[423383241,1780069855000,-2318.0,0.000361,11]
[423383238,1780069855000,-2178.8857,0.00036061,2]
[423383236,1780069855000,-400.0,0.00036048,2]
[423383234,1780069855000,-1300.50542728,0.00036002,7]
[423383235,1780069855000,-400.0,0.00036048,2]
[423383244,1780069855000,-884.0,0.00036177,13]
[423383239,1780069855000,-1180.38,0.00036075,30]
[423383253,1780069855000,-267.154285,0.00036333,31]
[423383259,1780069855000,-928.0,0.0003652,2]
[423383248,1780069855000,-150.0,0.00036247,2]
[423383251,1780069855000,-200.0,0.000363,14]
[423383249,1780069855000,-2178.8857,0.00036285,2]
[423383247,1780069855000,-1139.53,0.0003621,114]
[423383250,1780069855000,-1000.0,0.00036299,14]
[423383255,1780069855000,-1000.0,0.0003643,21]
[423383258,1780069855000,-2178.8857,0.00036509,2]
[423383260,1780069855000,-1356.0,0.0003652,2]
[423383254,1780069855000,-500.0,0.00036367,120]
[423383256,1780069855000,-5943.0,0.00036486,5]
[423383261,1780069855000,-3549.0,0.0003652,2]
[423383263,1780069855000,-1272.0,0.0003652,2]
[423383233,1780069855000,-1313.28558664,0.00036002,7]
[423383246,1780069855000,-1000.0,0.00036207,114]
[423383232,1780069855000,-1202.46850655,0.00036002,7]
[423383205,1780069855000,-185.0,0.00035686,30]
[423383231,1780069855000,-1407.80121865,0.00036002,7]
[423383203,1780069855000,-303.0,0.00035686,30]
[423383202,1780069855000,-1139.53,0.0003567,98]
[423383215,1780069855000,-982.0,0.00035699,30]
[423383206,1780069855000,-1418.0,0.00035686,30]
[423383204,1780069855000,-354.0,0.00035686,30]
[423383207,1780069855000,-902.0,0.00035686,30]
[423383209,1780069855000,-506.0,0.00035699,30]
[423383213,1780069855000,-407.0,0.00035699,30]
[423383211,1780069855000,-1489.0,0.00035699,30]
[423383210,1780069855000,-430.0,0.00035699,30]
[423383208,1780069855000,-1000.0,0.00035698,28]
[423383214,1780069855000,-2407.0,0.00035699,30]
[423383212,1780069855000,-364.0,0.00035699,30]
[423383229,1780069855000,-1111.0,0.00036,7]
[423383216,1780069855000,-1000.0,0.00035799,29]
[423383226,1780069855000,-1676.94258363,0.00035952,7]
[423383218,1780069855000,-2178.8857,0.00035837,2]
[423383228,1780069855000,-150.0,0.00035995,7]
[423383223,1780069855000,-150.0,0.00035951,2]
[423383220,1780069855000,-151.78,0.000359,90]
[423383219,1780069855000,-152.0,0.00035891,11]
[423383224,1780069855000,-150.0,0.00035951,2]
[423383227,1780069855000,-2996.77704077,0.0003598,7]
[423383217,1780069855000,-2062.0,0.00035824,120]
[423383221,1780069855000,-404.2,0.000359,90]
[423383225,1780069855000,-1255.63443943,0.00035952,7]
[423383230,1780069855000,-1351.370382,0.00036002,7]
[423383240,1780069855000,-2000.0,0.0003608,7]
[423383222,1780069855000,-311.68,0.000359,29]
[423383262,1780069855000,-525.0,0.0003652,2]
[423383257,1780069855000,-4958.0,0.00036486,5]
[423383265,1780069855000,-418.0,0.0003652,2]
[423383298,1780069855000,-1000.0,0.00037288,7]
[423383297,1780069855000,-884.0,0.00037286,14]
[423383301,1780069855000,-962.21810297,0.000373,120]
[423383300,1780069855000,-1328.57716142,0.000373,120]
[423383299,1780069855000,-1000.0,0.00037299,15]
[423383303,1780069855000,-200.0,0.000373,15]
[423383305,1780069855000,-482.7396847,0.00037328,2]
[423383306,1780069855000,-1982.7,0.00037334,2]
[423383315,1780069855000,-150.0,0.00037449,2]
[423383316,1780069855000,-186.26605818,0.000375,30]
[423383307,1780069855000,-409.58986341,0.00037378,90]
[423383304,1780069855000,-816.13891842,0.000373,120]
[423383309,1780069855000,-151.0,0.00037392,14]
[423383302,1780069855000,-1139.53,0.000373,60]
[423383311,1780069855000,-909987.13982475,0.00037395,2]
[423383310,1780069855000,-1000.0,0.00037394,2]
[423383312,1780069855000,-560577.50430198,0.00037395,2]
[423383313,1780069855000,-2178.8857,0.00037405,2]
[423383317,1780069855000,-186.26605817,0.000375,30]
[423383319,1780069855000,-8831.4009885,0.00037514,2]
[423383321,1780069855000,-1180.38,0.00037521,30]
[423383322,1780069855000,-16611.65479482,0.00037529,2]
[423383325,1780069855000,-555.2075735,0.000376,30]
[423383318,1780069855000,-186.26605817,0.000375,30]
[423383320,1780069855000,-69449.6812616,0.00037514,2]
[423383324,1780069855000,-1000.0,0.00037565,37]
[423383323,1780069855000,-1982.7,0.00037539,2]
[423383264,1780069855000,-1225.0,0.0003652,2]
[423383308,1780069855000,-163.0,0.0003738,11]
[423383296,1780069855000,-1000.0,0.00037286,11]
[423383314,1780069855000,-1982.7,0.00037437,2]
[423383295,1780069855000,-152.0,0.00037243,12]
[423383292,1780069855000,-3537.8,0.000372,30]
[423383266,1780069855000,-150.0,0.00036558,7]
[423383276,1780069855000,-153.68,0.00036878,60]
[423383277,1780069855000,-150.0,0.0003688,2]
[423383273,1780069855000,-1139.53,0.0003676,120]
[423383268,1780069855000,-153.68,0.00036678,60]
[423383267,1780069855000,-153.68884074,0.00036633,60]
[423383272,1780069855000,-1590.0,0.0003674,11]
[423383270,1780069855000,-884.0,0.00036731,14]
[423383269,1780069855000,-2318.0,0.00036692,11]
[423383274,1780069855000,-153.68,0.00036778,60]
[423383275,1780069855000,-638.13535969,0.00036822,2]
[423383290,1780069855000,-2178.8857,0.00037181,2]
[423383289,1780069855000,-1000.0,0.00037144,22]
[423383271,1780069855000,-2178.8857,0.00036733,2]
[423383278,1780069855000,-1000.0,0.00036899,13]
[423383293,1780069855000,-311.68,0.000372,36]
[423383279,1780069855000,-249.344,0.000369,34]
[423383294,1780069855000,-1982.7,0.00037232,2]
[423383291,1780069855000,-1000.0,0.00037198,36]
[423383288,1780069855000,-1000.0,0.00037137,19]
[423383284,1780069855000,-163.0,0.00037012,11]
[423383286,1780069855000,-2000.0,0.000371,7]
[423383285,1780069855000,-153.72420368,0.00037078,60]
[423383282,1780069855000,-1000.0,0.00036998,25]
[423383281,1780069855000,-153.68,0.00036978,60]
[423383283,1780069855000,-1111.0,0.00037,7]
[423383287,1780069855000,-150.0,0.0003712,7]
[423383280,1780069855000,-2178.8857,0.00036957,2]
[423383349,1780069856000,-1051.60070108,0.0003804,7]
[423383350,1780069856000,-1982.7,0.00038049,2]
[423383348,1780069856000,-151.92,0.00038014,120]
[423383353,1780069856000,-2704.2,0.00038125,30]
[423383347,1780069856000,-1111.0,0.00038,7]
[423383354,1780069856000,-1982.7,0.00038151,2]
[423383352,1780069856000,-1000.0,0.00038097,33]
[423383351,1780069856000,-223.2459,0.00038059,2]
[423383365,1780069856000,-517.08999999,0.00038356,60]
[423383357,1780069856000,-12666.05668599,0.00038182,2]
[423383356,1780069856000,-151.0,0.00038179,14]
[423383358,1780069856000,-150.0,0.00038245,7]
[423383361,1780069856000,-152.0,0.0003827,30]
[423383362,1780069856000,-200.0,0.000383,15]
[423383359,1780069856000,-1982.7,0.00038254,2]
[423383346,1780069856000,-267.154285,0.00038,39]
[423383364,1780069856000,-1727.68639575,0.00038329,120]
[423383355,1780069856000,-1000.0,0.00038163,97]
[423383341,1780069856000,-1000.0,0.0003792,43]
[423383330,1780069856000,-400.0,0.00037615,2]
[423383345,1780069856000,-209.0,0.00038,2]
[423383363,1780069856000,-2012.0,0.00038329,120]
[423383327,1780069856000,-555.20757348,0.000376,30]
[423383328,1780069856000,-2062.0,0.00037615,120]
[423383326,1780069856000,-555.20757348,0.000376,30]
[423383329,1780069856000,-400.0,0.00037615,2]
[423383335,1780069856000,-1000.0,0.00037798,38]
[423383340,1780069856000,-311.68,0.000379,39]
[423383336,1780069856000,-259.733333,0.000378,38]
[423383334,1780069856000,-1982.7,0.00037743,2]
[423383333,1780069856000,-150.0,0.00037683,7]
[423383337,1780069856000,-1139.53,0.0003784,86]
[423383331,1780069856000,-2178.8861,0.00037629,2]
[423383332,1780069856000,-1982.7,0.00037641,2]
[423383338,1780069856000,-884.0,0.00037841,15]
[423383339,1780069856000,-1982.7,0.00037845,2]
[423383342,1780069856000,-1982.7,0.00037947,2]
[423383343,1780069856000,-152.0,0.00037953,20]
[423383344,1780069856000,-2396.45,0.00038,30]
[423383360,1780069856000,-152.0,0.0003827,30]
[423383369,1780069856000,-1139.53,0.0003838,105]
[423383367,1780069856000,-1000.0,0.00038356,120]
[423383400,1780069856000,-1400.0,0.000387,14]
[423383389,1780069856000,-1067.80584837,0.00038576,20]
[423383392,1780069856000,-1122.49818332,0.00038576,20]
[423383393,1780069856000,-1071.27854507,0.00038576,20]
[423383396,1780069856000,-1176.94122987,0.00038576,20]
[423383391,1780069856000,-1122.59598153,0.00038576,20]
[423383394,1780069856000,-1057.70331994,0.00038576,20]
[423383395,1780069856000,-1047.91174867,0.00038576,20]
[423383398,1780069856000,-1000.0,0.00038598,42]
[423383397,1780069856000,-152.0,0.00038596,13]
[423383402,1780069856000,-152.0,0.00038768,21]
[423383401,1780069856000,-150.0,0.00038724,2]
[423383403,1780069856000,-355.0,0.00038794,2]
[423383404,1780069856000,-151.0,0.00038795,2]
[423383405,1780069856000,-1001.0,0.00038795,7]
[423383406,1780069856000,-253275.19605346,0.000388,9]
[423383366,1780069856000,-1982.76,0.00038356,2]
[423383390,1780069856000,-1059.41610825,0.00038576,20]
[423383387,1780069856000,-1041.8118756,0.00038559,20]
[423383399,1780069856000,-1400.0,0.000386,14]
[423383384,1780069856000,-1078.97734262,0.00038559,20]
[423383385,1780069856000,-1008.83806124,0.00038559,20]
[423383370,1780069856000,-884.0,0.00038396,16]
[423383375,1780069856000,-962.21810297,0.000384,120]
[423383377,1780069856000,-249.344,0.000384,41]
[423383368,1780069856000,-1000.0,0.00038377,105]
[423383373,1780069856000,-1510.863562,0.00038398,7]
[423383376,1780069856000,-816.13891842,0.000384,120]
[423383374,1780069856000,-1328.57716142,0.000384,120]
[423383371,1780069856000,-1000.0,0.00038397,41]
[423383378,1780069856000,-16611.65479481,0.00038423,2]
[423383386,1780069856000,-1053.68751576,0.00038559,20]
[423383372,1780069856000,-2994.538873,0.00038398,7]
[423383388,1780069856000,-1001.52985213,0.00038576,20]
[423383383,1780069856000,-1074.15463959,0.00038559,20]
[423383382,1780069856000,-1072.01073056,0.00038559,20]
[423383379,1780069856000,-3537.8,0.000385,30]
[423383381,1780069856000,-1036.97060991,0.00038559,20]
[423383380,1780069856000,-2000.0,0.000385,7]
[423383409,1780069857000,-1132.96638137,0.000388,9]
[423383408,1780069857000,-200.0,0.00027106,2]
[423383407,1780069857000,-6667.05132489,0.000388,9]
[423383455,1780069858000,-354.0,0.00039373,120]
[423383448,1780069858000,-831.97092004,0.00039346,120]
[423383444,1780069858000,-500.0,0.00039315,120]
[423383446,1780069858000,-151.0,0.00039332,14]
[423383445,1780069858000,-16611.65479481,0.00039317,2]
[423383441,1780069858000,-528.39647788,0.00039298,2]
[423383440,1780069858000,-2184.58596145,0.00039273,2]
[423383442,1780069858000,-200.0,0.000393,16]
[423383439,1780069858000,-400.0,0.00039183,2]
[423383438,1780069858000,-487.0,0.000391,7]
[423383449,1780069858000,-220.5403601,0.00039358,2]
[423383457,1780069858000,-1418.0,0.00039373,120]
[423383451,1780069858000,-150.0,0.0003937,7]
[423383454,1780069858000,-303.0,0.00039373,120]
[423383450,1780069858000,-1000.0,0.00039361,39]
[423383453,1780069858000,-3021.65071346,0.00039372,10]
[423383452,1780069858000,-150.0,0.0003937,7]
[423383458,1780069858000,-902.0,0.00039373,120]
[423383459,1780069858000,-151.0,0.00039373,30]
[423383467,1780069858000,-151.0,0.00039373,30]
[423383456,1780069858000,-185.0,0.00039373,120]
[423383460,1780069858000,-151.0,0.00039373,30]
[423383433,1780069858000,-1463.06860569,0.00038995,7]
[423383447,1780069858000,-970.97546689,0.00039346,120]
[423383443,1780069858000,-924.46406754,0.00039309,7]
[423383415,1780069858000,-200.0,0.00026318,2]
[423383436,1780069858000,-200.0,0.00039047,20]
[423383461,1780069858000,-151.0,0.00039373,30]
[423383410,1780069858000,-6057.93527832,0.000103,2]
[423383411,1780069858000,-200.0,0.00023166,2]
[423383416,1780069858000,-83103.07624028,0.000388,9]
[423383417,1780069858000,-1400.0,0.000388,14]
[423383413,1780069858000,-200.0,0.00024742,2]
[423383412,1780069858000,-200.0,0.00023954,2]
[423383414,1780069858000,-200.0,0.0002553,2]
[423383418,1780069858000,-150.0,0.00038807,7]
[423383419,1780069858000,-355.0,0.00038862,2]
[423383425,1780069858000,-1886.56040658,0.00038942,7]
[423383434,1780069858000,-2567.0,0.00039,7]
[423383427,1780069858000,-1180.38,0.00038967,60]
[423383424,1780069858000,-1412.58874435,0.00038942,7]
[423383426,1780069858000,-884.0,0.0003895,16]
[423383429,1780069858000,-3371.37417087,0.00038972,7]
[423383428,1780069858000,-1113.2000263,0.00038969,10]
[423383421,1780069858000,-1000.0,0.00038917,116]
[423383420,1780069858000,-1990.0,0.000389,14]
[423383430,1780069858000,-1583.77637098,0.00038995,7]
[423383431,1780069858000,-1352.77706987,0.00038995,7]
[423383432,1780069858000,-1665.65821487,0.00038995,7]
[423383435,1780069858000,-1111.0,0.00039,7]
[423383437,1780069858000,-1005.94,0.0003907,9]
[423383422,1780069858000,-1139.54,0.0003892,116]
[423383464,1780069858000,-151.0,0.00039373,30]
[423383423,1780069858000,-1000.0,0.00038931,120]
[423383462,1780069858000,-151.0,0.00039373,30]
[423383495,1780069858000,-151.0,0.00039373,30]
[423383497,1780069858000,-151.0,0.00039373,30]
[423383498,1780069858000,-151.0,0.00039373,30]
[423383496,1780069858000,-151.0,0.00039373,30]
[423383501,1780069858000,-151.0,0.00039373,30]
[423383499,1780069858000,-151.0,0.00039373,30]
[423383500,1780069858000,-151.0,0.00039373,30]
[423383503,1780069858000,-151.0,0.00039373,30]
[423383502,1780069858000,-151.0,0.00039373,30]
[423383504,1780069858000,-151.0,0.00039373,30]
[423383513,1780069858000,-151.0,0.00039373,30]
[423383494,1780069858000,-151.0,0.00039373,30]
[423383506,1780069858000,-151.0,0.00039373,30]
[423383517,1780069858000,-151.0,0.00039373,30]
[423383509,1780069858000,-151.0,0.00039373,30]
[423383510,1780069858000,-151.0,0.00039373,30]
[423383508,1780069858000,-151.0,0.00039373,30]
[423383507,1780069858000,-151.0,0.00039373,30]
[423383512,1780069858000,-151.0,0.00039373,30]
[423383511,1780069858000,-233.524757,0.00039373,30]
[423383514,1780069858000,-151.0,0.00039373,30]
[423383518,1780069858000,-151.0,0.00039373,30]
[423383515,1780069858000,-151.0,0.00039373,30]
[423383466,1780069858000,-151.0,0.00039373,30]
[423383505,1780069858000,-151.0,0.00039373,30]
[423383493,1780069858000,-151.0,0.00039373,30]
[423383516,1780069858000,-151.0,0.00039373,30]
[423383491,1780069858000,-151.0,0.00039373,30]
[423383492,1780069858000,-151.0,0.00039373,30]
[423383463,1780069858000,-151.0,0.00039373,30]
[423383465,1780069858000,-151.0,0.00039373,30]
[423383479,1780069858000,-151.0,0.00039373,30]
[423383468,1780069858000,-151.0,0.00039373,30]
[423383470,1780069858000,-151.0,0.00039373,30]
[423383471,1780069858000,-151.0,0.00039373,30]
[423383472,1780069858000,-151.0,0.00039373,30]
[423383476,1780069858000,-151.0,0.00039373,30]
[423383474,1780069858000,-151.0,0.00039373,30]
[423383477,1780069858000,-151.0,0.00039373,30]
[423383478,1780069858000,-151.0,0.00039373,30]
[423383469,1780069858000,-151.0,0.00039373,30]
[423383475,1780069858000,-151.0,0.00039373,30]
[423383473,1780069858000,-151.0,0.00039373,30]
[423383488,1780069858000,-151.0,0.00039373,30]
[423383485,1780069858000,-151.0,0.00039373,30]
[423383489,1780069858000,-151.0,0.00039373,30]
[423383483,1780069858000,-151.0,0.00039373,30]
[423383487,1780069858000,-151.0,0.00039373,30]
[423383482,1780069858000,-151.0,0.00039373,30]
[423383486,1780069858000,-276.92502,0.00039373,30]
[423383480,1780069858000,-151.0,0.00039373,30]
[423383481,1780069858000,-151.0,0.00039373,30]
[423383484,1780069858000,-151.0,0.00039373,30]
[423383490,1780069858000,-151.0,0.00039373,30]
[423383542,1780069859000,-151.0,0.00039373,30]
[423383538,1780069859000,-151.0,0.00039373,30]
[423383540,1780069859000,-151.0,0.00039373,30]
[423383548,1780069859000,-151.0,0.00039373,30]
[423383545,1780069859000,-151.0,0.00039373,30]
[423383557,1780069859000,-151.0,0.00039373,30]
[423383550,1780069859000,-151.0,0.00039373,30]
[423383559,1780069859000,-151.0,0.00039373,30]
[423383558,1780069859000,-151.0,0.00039373,30]
[423383561,1780069859000,-151.0,0.00039373,30]
[423383555,1780069859000,-151.0,0.00039373,30]
[423383552,1780069859000,-151.0,0.00039373,30]
[423383551,1780069859000,-151.0,0.00039373,30]
[423383553,1780069859000,-151.0,0.00039373,30]
[423383554,1780069859000,-151.0,0.00039373,30]
[423383556,1780069859000,-151.0,0.00039373,30]
[423383562,1780069859000,-151.0,0.00039373,30]
[423383564,1780069859000,-151.0,0.00039373,30]
[423383567,1780069859000,-151.0,0.00039373,3]
[423383543,1780069859000,-151.0,0.00039373,30]
[423383569,1780069859000,-248.908852,0.00039373,3]
[423383560,1780069859000,-151.0,0.00039373,30]
[423383541,1780069859000,-151.0,0.00039373,30]
[423383533,1780069859000,-151.0,0.00039373,30]
[423383539,1780069859000,-151.0,0.00039373,30]
[423383573,1780069859000,-151.0,0.00039373,30]
[423383525,1780069859000,-151.0,0.00039373,30]
[423383526,1780069859000,-151.0,0.00039373,30]
[423383519,1780069859000,-235.212704,0.00039373,30]
[423383520,1780069859000,-151.0,0.00039373,30]
[423383524,1780069859000,-151.0,0.00039373,30]
[423383521,1780069859000,-151.0,0.00039373,30]
[423383522,1780069859000,-151.0,0.00039373,30]
[423383523,1780069859000,-151.0,0.00039373,30]
[423383528,1780069859000,-151.0,0.00039373,30]
[423383531,1780069859000,-151.0,0.00039373,30]
[423383534,1780069859000,-151.0,0.00039373,30]
[423383529,1780069859000,-151.0,0.00039373,30]
[423383532,1780069859000,-151.0,0.00039373,30]
[423383530,1780069859000,-151.0,0.00039373,30]
[423383536,1780069859000,-151.0,0.00039373,30]
[423383537,1780069859000,-299.67003,0.00039373,30]
[423383535,1780069859000,-151.0,0.00039373,30]
[423383546,1780069859000,-151.0,0.00039373,30]
[423383549,1780069859000,-151.0,0.00039373,30]
[423383547,1780069859000,-151.0,0.00039373,30]
[423383544,1780069859000,-151.0,0.00039373,30]
[423383566,1780069859000,-151.0,0.00039373,30]
[423383527,1780069859000,-151.0,0.00039373,30]
[423383568,1780069859000,-295.00414,0.00039373,30]
[423383599,1780069859000,-151.0,0.00039373,30]
[423383596,1780069859000,-185.377295,0.00039373,30]
[423383593,1780069859000,-151.0,0.00039373,30]
[423383597,1780069859000,-151.0,0.00039373,30]
[423383595,1780069859000,-151.0,0.00039373,30]
[423383601,1780069859000,-151.0,0.00039373,30]
[423383603,1780069859000,-151.0,0.00039373,30]
[423383602,1780069859000,-151.0,0.00039373,30]
[423383613,1780069859000,-151.0,0.00039373,30]
[423383606,1780069859000,-151.0,0.00039373,30]
[423383594,1780069859000,-212.787484,0.00039373,30]
[423383609,1780069859000,-151.0,0.00039373,30]
[423383605,1780069859000,-151.0,0.00039373,30]
[423383604,1780069859000,-223.699032,0.00039373,30]
[423383608,1780069859000,-151.0,0.00039373,30]
[423383611,1780069859000,-151.0,0.00039373,30]
[423383610,1780069859000,-151.0,0.00039373,30]
[423383612,1780069859000,-151.0,0.00039373,30]
[423383616,1780069859000,-151.0,0.00039373,30]
[423383615,1780069859000,-151.0,0.00039373,30]
[423383614,1780069859000,-151.0,0.00039373,30]
[423383565,1780069859000,-299.072485,0.00039373,30]
[423383607,1780069859000,-151.0,0.00039373,30]
[423383598,1780069859000,-151.0,0.00039373,30]
[423383617,1780069859000,-151.0,0.00039373,30]
[423383592,1780069859000,-151.0,0.00039373,30]
[423383570,1780069859000,-151.0,0.00039373,30]
[423383574,1780069859000,-151.0,0.00039373,30]
[423383563,1780069859000,-151.0,0.00039373,30]
[423383572,1780069859000,-151.0,0.00039373,30]
[423383571,1780069859000,-151.0,0.00039373,30]
[423383575,1780069859000,-151.0,0.00039373,30]
[423383600,1780069859000,-151.0,0.00039373,30]
[423383578,1780069859000,-151.0,0.00039373,30]
[423383577,1780069859000,-151.0,0.00039373,30]
[423383579,1780069859000,-151.0,0.00039373,30]
[423383581,1780069859000,-151.0,0.00039373,30]
[423383576,1780069859000,-151.0,0.00039373,30]
[423383590,1780069859000,-151.0,0.00039373,30]
[423383583,1780069859000,-151.0,0.00039373,30]
[423383582,1780069859000,-151.0,0.00039373,30]
[423383580,1780069859000,-151.0,0.00039373,30]
[423383584,1780069859000,-151.0,0.00039373,30]
[423383585,1780069859000,-151.0,0.00039373,30]
[423383587,1780069859000,-151.0,0.00039373,30]
[423383588,1780069859000,-151.0,0.00039373,30]
[423383586,1780069859000,-151.0,0.00039373,30]
[423383591,1780069859000,-151.0,0.00039373,30]
[423383589,1780069859000,-151.0,0.00039373,30]
[423383651,1780069860000,-151.0,0.00039373,30]
[423383648,1780069860000,-151.0,0.00039373,30]
[423383646,1780069860000,-151.0,0.00039373,30]
[423383641,1780069860000,-151.0,0.00039373,30]
[423383645,1780069860000,-151.0,0.00039373,30]
[423383647,1780069860000,-151.0,0.00039373,30]
[423383644,1780069860000,-151.0,0.00039373,30]
[423383643,1780069860000,-151.0,0.00039373,30]
[423383662,1780069860000,-151.0,0.00039373,30]
[423383655,1780069860000,-151.0,0.00039373,30]
[423383650,1780069860000,-151.0,0.00039373,30]
[423383654,1780069860000,-270.0,0.00039373,30]
[423383652,1780069860000,-151.0,0.00039373,30]
[423383653,1780069860000,-151.0,0.00039373,30]
[423383658,1780069860000,-151.0,0.00039373,30]
[423383659,1780069860000,-151.0,0.00039373,30]
[423383660,1780069860000,-151.0,0.00039373,30]
[423383656,1780069860000,-151.0,0.00039373,30]
[423383657,1780069860000,-151.0,0.00039373,30]
[423383640,1780069860000,-151.0,0.00039373,30]
[423383661,1780069860000,-151.0,0.00039373,30]
[423383642,1780069860000,-151.0,0.00039373,30]
[423383629,1780069860000,-151.0,0.00039373,30]
[423383649,1780069860000,-151.0,0.00039373,30]
[423383663,1780069860000,-151.0,0.00039373,30]
[423383623,1780069860000,-151.0,0.00039373,30]
[423383624,1780069860000,-160.344009,0.00039373,30]
[423383625,1780069860000,-151.0,0.00039373,30]
[423383619,1780069860000,-151.0,0.00039373,30]
[423383618,1780069860000,-151.0,0.00039373,30]
[423383622,1780069860000,-151.0,0.00039373,30]
[423383620,1780069860000,-151.0,0.00039373,30]
[423383621,1780069860000,-151.0,0.00039373,30]
[423383627,1780069860000,-151.0,0.00039373,30]
[423383626,1780069860000,-151.0,0.00039373,30]
[423383637,1780069860000,-151.0,0.00039373,30]
[423383628,1780069860000,-151.0,0.00039373,30]
[423383630,1780069860000,-151.0,0.00039373,30]
[423383636,1780069860000,-151.0,0.00039373,30]
[423383634,1780069860000,-151.0,0.00039373,30]
[423383633,1780069860000,-151.0,0.00039373,30]
[423383632,1780069860000,-151.0,0.00039373,30]
[423383631,1780069860000,-151.0,0.00039373,30]
[423383635,1780069860000,-180.63572,0.00039373,30]
[423383639,1780069860000,-151.0,0.00039373,30]
[423383638,1780069860000,-151.0,0.00039373,30]
[423383664,1780069860000,-151.0,0.00039373,30]
[423383667,1780069860000,-151.0,0.00039373,30]
[423383671,1780069860000,-151.0,0.00039373,30]
[423383692,1780069860000,-151.0,0.00039373,30]
[423383694,1780069860000,-151.0,0.00039373,30]
[423383695,1780069860000,-151.0,0.00039373,30]
[423383697,1780069860000,-151.0,0.00039373,30]
[423383696,1780069860000,-151.0,0.00039373,30]
[423383699,1780069860000,-151.0,0.00039373,30]
[423383702,1780069860000,-151.0,0.00039373,30]
[423383700,1780069860000,-151.0,0.00039373,30]
[423383701,1780069860000,-151.0,0.00039373,30]
[423383698,1780069860000,-151.0,0.00039373,30]
[423383703,1780069860000,-295.704568,0.00039373,30]
[423383704,1780069860000,-717.480121,0.00039373,30]
[423383710,1780069860000,-717.480121,0.00039373,30]
[423383706,1780069860000,-717.480121,0.00039373,30]
[423383705,1780069860000,-717.480121,0.00039373,30]
[423383711,1780069860000,-185.042202,0.00039373,30]
[423383665,1780069860000,-151.0,0.00039373,30]
[423383708,1780069860000,-717.480121,0.00039373,30]
[423383707,1780069860000,-717.480121,0.00039373,30]
[423383713,1780069860000,-185.042202,0.00039373,30]
[423383712,1780069860000,-717.480121,0.00039373,30]
[423383693,1780069860000,-151.0,0.00039373,30]
[423383691,1780069860000,-255.748968,0.00039373,30]
[423383709,1780069860000,-717.480121,0.00039373,30]